fUSD/lending_fUSD_20250302
["ID","MTS","AMOUNT","RATE_DAILY","PERIOD"]
[355119718,1740920863743,-500.0,0.00024657,2]
[355119719,1740920863766,-500.0,0.00024657,2]
[355119720,1740920863791,-1288.93,0.00024657,2]
[355119721,1740920863814,-1440.88,0.00024657,2]
[355119722,1740920863839,-2131.81,0.00024657,2]
[355119723,1740920863863,-2175.12,0.00024657,2]
[355119724,1740920863884,-500.0,0.00024657,2]
[355119725,1740920863905,-2107.81,0.00024657,2]
[355119726,1740920863928,-4240.77,0.00024657,2]
[355119727,1740920863951,-4056.61,0.00024657,2]
[355119728,1740920863972,-500.0,0.00024657,2]
[355119729,1740920863993,-1037.53,0.00024657,2]
[355119730,1740920864015,-608.15,0.00024657,2]
[355119731,1740920864036,-1970.41,0.00024657,2]
[355119732,1740920864058,-4119.12,0.00024657,2]
[355119733,1740920864079,-3871.79,0.00024657,2]
[355119734,1740920864100,-1120.9,0.00024657,2]
[355119735,1740920864122,-500.0,0.00024657,2]
[355119736,1740920864142,-500.0,0.00024657,2]
[355119737,1740920864164,-787.31,0.00024657,2]
[355119738,1740920864185,-717.47,0.00024657,2]
[355119739,1740920864206,-150.0,0.00024808,2]
[355119740,1740920864228,-913.76,0.0002493,2]
[355119741,1740920864249,-2598.7,0.0002493,2]
[355119742,1740920864271,-500.0,0.0002493,2]
[355119743,1740920864292,-2287.95,0.0002493,2]
[355119744,1740920864316,-3175.8,0.0002493,2]
[355119745,1740920864338,-500.0,0.0002493,2]
[355119746,1740920864359,-1710.59,0.0002493,2]
[355119747,1740920864381,-1291.63,0.0002493,2]
[355119748,1740920864403,-500.0,0.0002493,2]
[355119749,1740920864425,-2130.94,0.0002493,2]
[355119750,1740920864641,-500.0,0.0002493,2]
[355119751,1740920864665,-500.0,0.0002493,2]
[355119752,1740920864686,-764.8,0.0002493,2]
[355119753,1740920864708,-500.0,0.00024931,2]
[355119754,1740920864730,-500.0,0.00024931,2]
[355119755,1740920864752,-500.0,0.00024931,2]
[355119756,1740920864774,-740.12,0.00024931,2]
[355119757,1740920864798,-500.0,0.00024931,2]
[355119758,1740920864820,-500.0,0.00024931,2]
[355119759,1740920864843,-500.0,0.00024931,2]
[355119760,1740920864865,-231.69,0.00024931,2]
[355119761,1740920864888,-500.0,0.00024931,2]
[355119762,1740920864911,-500.0,0.00024931,2]
[355119763,1740920864933,-500.0,0.00024931,2]
[355119764,1740920864956,-500.0,0.00024931,2]
[355119765,1740920864978,-500.0,0.00024931,2]
[355119766,1740920865001,-500.0,0.00024931,2]
[355119767,1740920865023,-1139.99,0.00024931,2]
[355119768,1740920865045,-760.17,0.00024931,2]
[355119769,1740920865068,-500.0,0.00024931,2]
[355119770,1740920865090,-1565.61,0.00024931,2]
[355119771,1740920865113,-704.29,0.00024931,2]
[355119772,1740920865135,-500.0,0.00024931,2]
[355119773,1740920865156,-500.0,0.00024931,2]
[355119774,1740920865179,-1079.31,0.00024931,2]
[355119775,1740920865200,-500.0,0.00024931,2]
[355119776,1740920865222,-500.0,0.00024931,2]
[355119777,1740920865243,-500.0,0.00024931,2]
[355119778,1740920865264,-2043.72,0.00024931,2]
[355119779,1740920865286,-500.0,0.00024931,2]
[355119780,1740920865308,-1701.57,0.00024931,2]
[355119781,1740920865330,-500.0,0.00024931,2]
[355119782,1740920865351,-500.0,0.00024931,2]
[355119783,1740920865374,-787.52,0.00024931,2]
[355119784,1740920865395,-500.0,0.00024931,2]
[355119785,1740920865417,-2647.47,0.00024931,2]
[355119786,1740920865439,-500.0,0.00024931,2]
[355119787,1740920865461,-500.0,0.00024931,2]
[355119788,1740920865482,-1288.93,0.00024931,2]
[355119789,1740920865505,-1440.88,0.00024931,2]
[355119790,1740920865526,-2131.81,0.00024931,2]
[355119791,1740920865548,-2175.12,0.00024931,2]
[355119792,1740920865570,-500.0,0.00024931,2]
[355119793,1740920865591,-2107.81,0.00024931,2]
[355119794,1740920865613,-4240.77,0.00024931,2]
[355119795,1740920865634,-4056.61,0.00024931,2]
[355119796,1740920865656,-500.0,0.00024931,2]
[355119797,1740920865678,-1037.53,0.00024931,2]
[355119798,1740920865700,-608.15,0.00024931,2]
[355119799,1740920865721,-1970.41,0.00024931,2]
[355119800,1740920865744,-4119.12,0.00024931,2]
[355119801,1740920865766,-3871.79,0.00024931,2]
[355119802,1740920865792,-1120.9,0.00024931,2]
[355119803,1740920865815,-500.0,0.00024931,2]
[355119804,1740920865838,-500.0,0.00024931,2]
[355119805,1740920865861,-787.31,0.00024931,2]
[355119806,1740920865883,-717.47,0.00024931,2]
[355119807,1740920865904,-675.46377281,0.00024963,2]
[355119808,1740920865926,-576.48,0.00024999,2]
[355119809,1740920865949,-745.78,0.00024999,2]
[355119810,1740920865972,-1936.53,0.00024999,2]
[355119811,1740920865995,-604.22,0.00024999,2]
[355119812,1740920866018,-8036.92,0.00024999,2]
[355119813,1740920866041,-1619.48,0.00024999,2]
[355119814,1740920866065,-500.0,0.00024999,2]
[355119815,1740920866089,-4476.77,0.00024999,2]
[355119816,1740920866113,-6827.18,0.00024999,2]
[355119817,1740920866135,-2028.9,0.00024999,2]
[355119818,1740920866158,-1507.67,0.00024999,2]
[355119819,1740920866180,-500.0,0.00024999,2]
[355119820,1740920866203,-4175.06,0.00024999,2]
[355119821,1740920866224,-1872.75,0.00024999,2]
[355119822,1740920866247,-4930.0,0.00024999,2]
[355119823,1740920866268,-3137.52,0.00024999,2]
[355119824,1740920866291,-4457.27,0.00024999,2]
[355119825,1740920866313,-550.0,0.00025,2]
[355119826,1740920869485,1235.29,0.00024657,2]
[355119827,1740920869736,1235.29,0.00024931,2]
[355119828,1740920880831,4875.99,0.00024657,2]
[355119829,1740920881082,4875.99,0.00024931,2]
[355119830,1740920883275,1873.41,0.0002493,2]
[355119831,1740920888435,552.46,0.00024962,2]
[355119832,1740920888963,5586.84,0.00024657,2]
[355119833,1740920889055,5586.84,0.00024931,2]
[355119834,1740920891251,500.0,0.00024657,2]
[355119835,1740920891481,500.0,0.00024931,2]
[355119836,1740920901503,714.7,0.00024962,2]
[355119837,1740920905589,1559.77,0.0002493,2]
[355119838,1740920906501,1226.77,0.00024657,2]
[355119839,1740920906738,1226.77,0.00024931,2]
[355119840,1740920907822,721.9,0.00024999,2]
[355119841,1740920909006,500.0,0.00024657,2]
[355119842,1740920909437,500.0,0.00024931,2]
[355119843,1740920910817,678.44,0.00024657,2]
[355119844,1740920911056,678.44,0.00024931,2]
[355119845,1740920915330,1855.84,0.00024962,2]
[355119846,1740920919647,2426.84,0.00024999,2]
[355119847,1740920925847,579.04,0.00024962,2]
[355119848,1740920928157,1429.87,0.00024657,2]
[355119849,1740920928412,1429.87,0.00024931,2]
[355119850,1740920929830,500.0,0.00024657,2]
[355119851,1740920930076,500.0,0.00024931,2]
[355119852,1740920930949,500.0,0.00024999,2]
[355119853,1740920932952,1181.52,0.00024999,2]
[355119854,1740920935406,7702.05,0.00024962,2]
[355119855,1740920941232,500.0,0.00024657,2]
[355119856,1740920941363,1320.81,0.00024999,2]
[355119857,1740920941582,500.0,0.00024931,2]
[355119858,1740920943970,1552.0,0.00024962,2]
[355119859,1740920945484,500.0,0.0002493,2]
[355119860,1740920946969,500.0,0.00024657,2]
[355119861,1740920947241,500.0,0.00024931,2]
[355119862,1740920950872,1233.83,0.00024657,2]
[355119863,1740920951159,1233.83,0.00024931,2]
[355119864,1740920955767,2012.98,0.00024999,2]
[355119865,1740920956490,154.684622,0.00024999,2]
[355119866,1740920958443,153.088696,0.00024999,2]
[355119867,1740920959957,500.0,0.00024962,2]
[355119868,1740920960617,178.58,0.000198,2]
[355119869,1740920967271,500.0,0.00024962,2]
[355119870,1740920971238,2245.9,0.00024999,2]
[355119871,1740920971676,500.0,0.00024657,2]
[355119872,1740920971914,500.0,0.00024931,2]
[355119873,1740920973619,500.0,0.00024962,2]
[355119874,1740920974198,5234.1,0.00024657,2]
[355119875,1740920974468,5234.1,0.00024931,2]
[355119876,1740920978195,4290.24,0.00024962,2]
[355119877,1740920979999,234.8131478,0.00024657,2]
[355119878,1740920982491,1932.16,0.00024999,2]
[355119879,1740920993040,928.83,0.00024657,2]
[355119880,1740920993072,1204.01,0.00024999,2]
[355119881,1740920993664,928.83,0.00024931,2]
[355119882,1740920996044,500.0,0.00024962,2]
[355119883,1740921002553,500.0,0.00024962,2]
[355119884,1740921003386,1010.77,0.00024999,2]
[355119885,1740921010980,6664.78,0.00024962,2]
[355119886,1740921011827,578.3,0.00024999,2]
[355119887,1740921013155,500.0,0.00024657,2]
[355119888,1740921013203,3917.93,0.0002493,2]
[355119889,1740921013277,500.0,0.00024931,2]
[355119890,1740921020024,500.0,0.00024657,2]
[355119891,1740921020283,238.02,0.00024931,2]
[355119892,1740921021963,500.0,0.00024962,2]
[355119893,1740921022234,547.12,0.00024657,2]
[355119894,1740921022411,613.34832329,0.00024999,2]
[355119895,1740921023128,500.0,0.0002493,2]
[355119896,1740921023655,500.0,0.00024657,2]
[355119897,1740921023926,500.0,0.00024931,2]
[355119898,1740921024415,4400.11,0.00024657,2]
[355119899,1740921024671,4400.11,0.00024931,2]
[355119900,1740921026236,1827.05,0.00024999,2]
[355119902,1740921031833,-450.0,0.00025127,2]
[355119903,1740921031846,-5212.96431868,0.00025151,2]
[355119904,1740921031856,-300.0,0.00025176,2]
[355119905,1740921031865,-310.852,0.00025177,9]
[355119906,1740921031875,-6106.88,0.00025177,9]
[355119907,1740921031885,-5000.14245324,0.000252,5]
[355119908,1740921031895,-2304.01,0.00025203,2]
[355119910,1740921032132,-2686.08,0.00025203,2]
[355119912,1740921032145,-500.0,0.00025204,2]
[355119914,1740921032156,-5000.0,0.00025204,2]
[355119916,1740921032167,-500.0,0.00025204,2]
[355119918,1740921032177,-2130.94,0.00025204,2]
[355119920,1740921032187,-500.0,0.00025204,2]
[355119922,1740921032203,-500.0,0.00025204,2]
[355119924,1740921032213,-764.8,0.00025204,2]
[355119926,1740921032223,-1873.41,0.00025204,2]
[355119928,1740921032233,-1559.77,0.00025204,2]
[355119930,1740921032244,-500.0,0.00025204,2]
[355119932,1740921032253,-3917.93,0.00025204,2]
[355119934,1740921032263,-500.0,0.00025204,2]
[355119936,1740921032274,-500.0,0.00025205,2]
[355119938,1740921032284,-500.0,0.00025205,2]
[355119940,1740921032294,-500.0,0.00025205,2]
[355119941,1740921032304,-1139.99,0.00025205,2]
[355119943,1740921032314,-760.17,0.00025205,2]
[355119945,1740921032324,-500.0,0.00025205,2]
[355119947,1740921032334,-1565.61,0.00025205,2]
[355119949,1740921032344,-704.29,0.00025205,2]
[355119951,1740921032355,-500.0,0.00025205,2]
[355119953,1740921032364,-500.0,0.00025205,2]
[355119955,1740921032375,-1079.31,0.00025205,2]
[355119957,1740921032384,-500.0,0.00025205,2]
[355119959,1740921032394,-500.0,0.00025205,2]
[355119961,1740921032404,-500.0,0.00025205,2]
[355119963,1740921032414,-500.0,0.00025205,2]
[355119965,1740921032423,-500.0,0.00025205,2]
[355119967,1740921032434,-500.0,0.00025205,2]
[355119969,1740921032443,-500.0,0.00025205,2]
[355119970,1740921032454,-500.0,0.00025205,2]
[355119972,1740921032464,-500.0,0.00025205,2]
[355119974,1740921032474,-4119.12,0.00025205,2]
[355119976,1740921032483,-3871.79,0.00025205,2]
[355119978,1740921032493,-1120.9,0.00025205,2]
[355119980,1740921032502,-500.0,0.00025205,2]
[355119981,1740921032511,-500.0,0.00025205,2]
[355119983,1740921032521,-787.31,0.00025205,2]
[355119984,1740921032531,-717.47,0.00025205,2]
[355119985,1740921032540,-1235.29,0.00025205,2]
[355119986,1740921032550,-4875.99,0.00025205,2]
[355119987,1740921032560,-5586.84,0.00025205,2]
[355119988,1740921032570,-500.0,0.00025205,2]
[355119989,1740921032579,-1226.77,0.00025205,2]
[355119990,1740921032589,-503.50617714,0.00025205,2]
[355119991,1740921032599,-678.44,0.00025205,2]
[355119992,1740921032609,-1429.87,0.00025205,2]
[355119993,1740921032618,-500.0,0.00025205,2]
[355119994,1740921032628,-500.0,0.00025205,2]
[355119995,1740921032638,-500.0,0.00025205,2]
[355119996,1740921032648,-1233.83,0.00025205,2]
[355119997,1740921032657,-5234.1,0.00025205,2]
[355119998,1740921032667,-928.83,0.00025205,2]
[355119999,1740921032676,-500.0,0.00025205,2]
[355120000,1740921032686,-500.0,0.00025205,2]
[355120001,1740921032695,-4400.11,0.00025205,2]
[355120002,1740921032705,-552.46,0.00025236,2]
[355120003,1740921032719,-714.7,0.00025236,2]
[355120004,1740921032729,-1855.84,0.00025236,2]
[355120005,1740921032739,-579.04,0.00025236,2]
[355120006,1740921032750,-7702.05,0.00025236,2]
[355120008,1740921032760,-1552.0,0.00025236,2]
[355120009,1740921032769,-500.0,0.00025236,2]
[355120011,1740921032779,-500.0,0.00025236,2]
[355120012,1740921032788,-500.0,0.00025236,2]
[355120014,1740921032798,-4290.24,0.00025236,2]
[355120016,1740921032808,-500.0,0.00025236,2]
[355120019,1740921032818,-500.0,0.00025236,2]
[355120021,1740921032828,-154.684622,0.00025236,2]
[355120023,1740921032840,-6664.78,0.00025236,2]
[355120025,1740921032851,-500.0,0.00025236,2]
[355120027,1740921032861,-150.369307,0.00025236,2]
[355120029,1740921032871,-500.0,0.00025273,2]
[355120031,1740921032881,-500.0,0.00025273,2]
[355120033,1740921032891,-451.88524422,0.00025273,2]
[355120035,1740921032900,-2028.9,0.00025273,2]
[355120037,1740921032910,-1507.67,0.00025273,2]
[355120039,1740921032922,-500.0,0.00025273,2]
[355120041,1740921032932,-4175.06,0.00025273,2]
[355120043,1740921032944,-1872.75,0.00025273,2]
[355120045,1740921032954,-4930.0,0.00025273,2]
[355120047,1740921032964,-3137.52,0.00025273,2]
[355120048,1740921032974,-4457.27,0.00025273,2]
[355120050,1740921032984,-721.9,0.00025273,2]
[355120052,1740921032995,-2426.84,0.00025273,2]
[355120053,1740921033005,-1181.52,0.00025273,2]
[355120054,1740921033015,-1320.81,0.00025273,2]
[355120055,1740921033025,-2012.98,0.00025273,2]
[355120056,1740921033035,-2245.9,0.00025273,2]
[355120057,1740921033045,-1932.16,0.00025273,2]
[355120058,1740921033056,-1204.01,0.00025273,2]
[355120059,1740921033066,-1010.77,0.00025273,2]
[355120060,1740921033077,-578.3,0.00025273,2]
[355120061,1740921033087,-1287.63143877,0.00025273,2]
[355120062,1740921033297,-539.41856123,0.00025273,2]
[355120063,1740921033307,-2304.01,0.00025477,2]
[355120064,1740921033317,-2686.08,0.00025477,2]
[355120065,1740921033327,-500.0,0.00025478,2]
[355120066,1740921033337,-157.25892778,0.00025478,2]
[355120067,1740921033358,-4842.74107222,0.00025478,2]
[355120068,1740921033371,-500.0,0.00025478,2]
[355120069,1740921033381,-2130.94,0.00025478,2]
[355120070,1740921033391,-500.0,0.00025478,2]
[355120071,1740921033401,-500.0,0.00025478,2]
[355120072,1740921033411,-319.68660978,0.00025478,2]
[355120073,1740921033423,-445.11339022,0.00025478,2]
[355120074,1740921033433,-1873.41,0.00025478,2]
[355120075,1740921033443,-1559.77,0.00025478,2]
[355120076,1740921033453,-685.32,0.00025478,2]
[355120077,1740921033464,-886.91360978,0.00025478,2]
[355120078,1740921033476,-430.75,0.00025478,2]
[355120079,1740921033490,-540.49795588,0.00025478,2]
[355120080,1740921033503,-632.25843434,0.00025478,2]
[355120081,1740921033513,-500.0,0.00025478,2]
[355120082,1740921033523,-339.88913722,0.00025478,2]
[355120083,1740921033536,-160.11086278,0.00025478,2]
[355120084,1740921033546,-1048.63766192,0.00025478,2]
[355120085,1740921033559,-752.76793986,0.00025478,2]
[355120086,1740921033579,-416.79146914,0.00025478,2]
[355120087,1740921033592,-82.19292908,0.00025478,2]
[355120088,1740921033602,-500.0,0.00025478,2]
[355120089,1740921033612,-2413.63707092,0.00025478,2]
[355120090,1740921033626,-294.33656805,0.00025478,2]
[355120091,1740921033639,-335.50636103,0.00025478,2]
[355120092,1740921033650,-139.71363902,0.00025478,2]
[355120093,1740921033662,-360.28636098,0.00025478,2]
[355120094,1740921033673,-52.99171276,0.00025478,2]
[355120095,1740921034396,500.0,0.00024999,2]
[355120096,1740921036822,1859.83,0.00024962,2]
[355120111,1740921037665,-1109.76612253,0.00025236,2]
[355120114,1740921037706,-750.06387747,0.00025236,2]
[355120115,1740921037716,-1217.56783284,0.00025478,2]
[355120116,1740921037728,-368.7504544,0.00025478,2]
[355120117,1740921037738,-500.0,0.00025478,2]
[355120118,1740921037747,-500.0,0.00025478,2]
[355120119,1740921037758,-733.261718,0.00025478,2]
[355120120,1740921037770,-1840.57138119,0.00025478,2]
[355120121,1740921037782,-1344.09690081,0.00025478,2]
[355120122,1740921037791,-500.0,0.00025478,2]
[355120123,1740921037801,-500.0,0.00025478,2]
[355120124,1740921037811,-500.0,0.00025478,2]
[355120125,1740921037820,-500.0,0.00025478,2]
[355120126,1740921037830,-500.0,0.00025478,2]
[355120127,1740921037842,-504.04,0.00025478,2]
[355120128,1740921037857,-1327.93,0.00025478,2]
[355120129,1740921037866,-604.8,0.00025478,2]
[355120130,1740921037875,-500.0,0.00025478,2]
[355120131,1740921037886,-500.0,0.00025478,2]
[355120132,1740921037895,-500.0,0.00025478,2]
[355120133,1740921037905,-500.0,0.00025479,2]
[355120134,1740921037914,-500.0,0.00025479,2]
[355120135,1740921037925,-1139.99,0.00025479,2]
[355120136,1740921037935,-760.17,0.00025479,2]
[355120137,1740921037944,-500.0,0.00025479,2]
[355120138,1740921037955,-1565.61,0.00025479,2]
[355120139,1740921037965,-704.29,0.00025479,2]
[355120140,1740921037975,-500.0,0.00025479,2]
[355120141,1740921037986,-500.0,0.00025479,2]
[355120142,1740921037995,-1079.31,0.00025479,2]
[355120143,1740921038004,-500.0,0.00025479,2]
[355120144,1740921038016,-500.0,0.00025479,2]
[355120145,1740921038025,-500.0,0.00025479,2]
[355120146,1740921038035,-500.0,0.00025479,2]
[355120147,1740921038044,-500.0,0.00025479,2]
[355120148,1740921038054,-500.0,0.00025479,2]
[355120149,1740921038064,-500.0,0.00025479,2]
[355120150,1740921038074,-500.0,0.00025479,2]
[355120151,1740921038083,-4119.12,0.00025479,2]
[355120152,1740921038093,-3871.79,0.00025479,2]
[355120153,1740921038103,-1120.9,0.00025479,2]
[355120154,1740921038112,-500.0,0.00025479,2]
[355120155,1740921038122,-500.0,0.00025479,2]
[355120156,1740921038131,-787.31,0.00025479,2]
[355120157,1740921038141,-717.47,0.00025479,2]
[355120158,1740921038329,-1235.29,0.00025479,2]
[355120159,1740921038345,-4875.99,0.00025479,2]
[355120160,1740921038355,-5586.84,0.00025479,2]
[355120161,1740921038364,-500.0,0.00025479,2]
[355120162,1740921038374,-1226.77,0.00025479,2]
[355120163,1740921038384,-678.44,0.00025479,2]
[355120164,1740921038393,-1429.87,0.00025479,2]
[355120165,1740921038403,-500.0,0.00025479,2]
[355120166,1740921038413,-500.0,0.00025479,2]
[355120167,1740921038422,-500.0,0.00025479,2]
[355120168,1740921038432,-1233.83,0.00025479,2]
[355120169,1740921038441,-5234.1,0.00025479,2]
[355120170,1740921038451,-928.83,0.00025479,2]
[355120171,1740921038460,-500.0,0.00025479,2]
[355120172,1740921038470,-500.0,0.00025479,2]
[355120173,1740921038479,-4400.11,0.00025479,2]
[355120174,1740921038488,-552.46,0.0002551,2]
[355120175,1740921038498,-714.7,0.0002551,2]
[355120176,1740921038508,-1855.84,0.0002551,2]
[355120177,1740921038518,-579.04,0.0002551,2]
[355120178,1740921038527,-7702.05,0.0002551,2]
[355120179,1740921038537,-1552.0,0.0002551,2]
[355120180,1740921038546,-500.0,0.0002551,2]
[355120181,1740921038555,-500.0,0.0002551,2]
[355120182,1740921038565,-595.58,0.0002551,2]
[355120183,1740921038575,-4290.24,0.0002551,2]
[355120184,1740921038584,-500.0,0.0002551,2]
[355120185,1740921038594,-6664.78,0.0002551,2]
[355120186,1740921038603,-1859.83,0.0002551,2]
[355120187,1740921038613,-1507.67,0.00025547,2]
[355120188,1740921038622,-500.0,0.00025547,2]
[355120189,1740921038631,-4175.06,0.00025547,2]
[355120190,1740921038641,-1872.75,0.00025547,2]
[355120191,1740921038650,-4930.0,0.00025547,2]
[355120192,1740921038660,-3137.52,0.00025547,2]
[355120193,1740921038669,-4457.27,0.00025547,2]
[355120194,1740921038679,-721.9,0.00025547,2]
[355120195,1740921038688,-2426.84,0.00025547,2]
[355120196,1740921038698,-1181.52,0.00025547,2]
[355120197,1740921038707,-1320.81,0.00025547,2]
[355120198,1740921038717,-2012.98,0.00025547,2]
[355120199,1740921038726,-2245.9,0.00025547,2]
[355120200,1740921038736,-1932.16,0.00025547,2]
[355120201,1740921038745,-1204.01,0.00025547,2]
[355120202,1740921038755,-1010.77,0.00025547,2]
[355120203,1740921038764,-578.3,0.00025547,2]
[355120204,1740921038774,-1827.05,0.00025547,2]
[355120205,1740921038783,-2148.94253575,0.00025652,2]
[355120206,1740921038793,-320.87739199,0.00025653,2]
[355120207,1740921038802,-5212.96431868,0.00025744,2]
[355120208,1740921038812,-2686.08,0.00025751,2]
[355120209,1740921038821,-5000.0,0.00025752,2]
[355120210,1740921038831,-2130.94,0.00025752,2]
[355120211,1740921038842,-500.0,0.00025752,2]
[355120212,1740921038852,-500.0,0.00025752,2]
[355120213,1740921038862,-764.8,0.00025752,2]
[355120214,1740921038872,-1873.41,0.00025752,2]
[355120215,1740921038882,-1559.77,0.00025752,2]
[355120216,1740921038892,-685.32,0.00025752,2]
[355120217,1740921038902,-2490.42,0.00025752,2]
[355120218,1740921038911,-500.0,0.00025752,2]
[355120219,1740921038922,-500.0,0.00025752,2]
[355120220,1740921038932,-2300.39,0.00025752,2]
[355120221,1740921038942,-500.0,0.00025752,2]
[355120222,1740921038951,-3043.48,0.00025752,2]
[355120223,1740921038962,-500.0,0.00025752,2]
[355120224,1740921038971,-1639.31,0.00025752,2]
[355120225,1740921038980,-500.0,0.00025752,2]
[355120226,1740921038989,-3917.93,0.00025752,2]
[355120227,1740921038999,-507.28,0.00025752,2]
[355120228,1740921039009,-491.91,0.00025752,2]
[355120229,1740921039019,-500.0,0.00025752,2]
[355120230,1740921039028,-500.0,0.00025752,2]
[355120231,1740921039038,-1327.93,0.00025752,2]
[355120232,1740921039047,-500.0,0.00025752,2]
[355120233,1740921039057,-381.62,0.00025752,2]
[355120234,1740921039067,-500.0,0.00025752,2]
[355120235,1740921039077,-500.0,0.00025753,2]
[355120236,1740921039087,-1139.99,0.00025753,2]
[355120237,1740921039096,-760.17,0.00025753,2]
[355120238,1740921039106,-500.0,0.00025753,2]
[355120239,1740921039115,-1565.61,0.00025753,2]
[355120240,1740921039125,-704.29,0.00025753,2]
[355120241,1740921039135,-500.0,0.00025753,2]
[355120242,1740921039144,-500.0,0.00025753,2]
[355120243,1740921039154,-1079.31,0.00025753,2]
[355120244,1740921039163,-500.0,0.00025753,2]
[355120245,1740921039173,-500.0,0.00025753,2]
[355120246,1740921039183,-500.0,0.00025753,2]
[355120247,1740921039193,-500.0,0.00025753,2]
[355120248,1740921039202,-500.0,0.00025753,2]
[355120249,1740921039213,-500.0,0.00025753,2]
[355120250,1740921039223,-500.0,0.00025753,2]
[355120251,1740921039232,-500.0,0.00025753,2]
[355120252,1740921039242,-4119.12,0.00025753,2]
[355120253,1740921039251,-3871.79,0.00025753,2]
[355120254,1740921039260,-1120.9,0.00025753,2]
[355120255,1740921039270,-500.0,0.00025753,2]
[355120256,1740921039280,-500.0,0.00025753,2]
[355120257,1740921039289,-787.31,0.00025753,2]
[355120258,1740921039300,-717.47,0.00025753,2]
[355120259,1740921039309,-1235.29,0.00025753,2]
[355120260,1740921039319,-4875.99,0.00025753,2]
[355120261,1740921039328,-5586.84,0.00025753,2]
[355120262,1740921039338,-500.0,0.00025753,2]
[355120263,1740921039347,-1226.77,0.00025753,2]
[355120264,1740921039357,-678.44,0.00025753,2]
[355120265,1740921039367,-1429.87,0.00025753,2]
[355120266,1740921039376,-432.68,0.00025753,2]
[355120267,1740921039386,-500.0,0.00025753,2]
[355120268,1740921039396,-500.0,0.00025753,2]
[355120269,1740921039406,-1233.83,0.00025753,2]
[355120270,1740921039415,-5234.1,0.00025753,2]
[355120271,1740921039425,-928.83,0.00025753,2]
[355120272,1740921039435,-385.75,0.00025753,2]
[355120273,1740921039445,-359.6,0.00025753,2]
[355120274,1740921039455,-4400.11,0.00025753,2]
[355120275,1740921039464,-552.46,0.00025784,2]
[355120276,1740921039473,-714.7,0.00025784,2]
[355120277,1740921039483,-1855.84,0.00025784,2]
[355120278,1740921039492,-579.04,0.00025784,2]
[355120280,1740921039501,-7702.05,0.00025784,2]
[355120282,1740921039511,-1552.0,0.00025784,2]
[355120284,1740921039520,-500.0,0.00025784,2]
[355120286,1740921039530,-500.0,0.00025784,2]
[355120288,1740921039539,-4290.24,0.00025784,2]
[355120290,1740921039548,-500.0,0.00025784,2]
[355120292,1740921039558,-154.684622,0.00025784,2]
[355120294,1740921039567,-6664.78,0.00025784,2]
[355120296,1740921039577,-250.45184478,0.000258,2]
[355120298,1740921039586,-1507.67,0.00025821,2]
[355120300,1740921039596,-500.0,0.00025821,2]
[355120302,1740921039605,-4175.06,0.00025821,2]
[355120304,1740921039614,-1872.75,0.00025821,2]
[355120306,1740921039624,-4930.0,0.00025821,2]